[Event "*** Titled Tuesday Blitz"]
[Site "Chess.com"]
[Date "2020.04.28"]
[Round "4"]
[White "gmcorrales"]
[Black "Rumpel-VK"]
[Result "0-1"]
[WhiteElo "2802"]
[BlackElo "2637"]
[TimeControl "180+1"]
[EndTime "10:39:46 PDT"]
[Termination "Rumpel-VK won by resignation"]

1. e4 {[%clk 0:03:00.9]} 1... c5 {[%clk 0:02:59.3]} 2. Nf3 {[%clk 0:03:00.6]}
2... Nc6 {[%clk 0:02:59.3]} 3. d4 {[%clk 0:03:01.1]} 3... cxd4 {[%clk
0:02:58.9]} 4. Nxd4 {[%clk 0:03:02]} 4... e5 {[%clk 0:02:59.4]} 5. Nb5 {[%clk
0:02:58.4]} 5... a6 {[%clk 0:02:58.7]} 6. Nd6+ {[%clk 0:02:57.7]} 6... Bxd6
{[%clk 0:02:58.1]} 7. Qxd6 {[%clk 0:02:58.6]} 7... Qe7 {[%clk 0:02:58]} 8. Qxe7+
{[%clk 0:02:53.7]} 8... Ngxe7 {[%clk 0:02:57.3]} 9. Nc3 {[%clk 0:02:52.2]} 9...
d5 {[%clk 0:02:57]} 10. Nxd5 {[%clk 0:02:31.8]} 10... Nxd5 {[%clk 0:02:55.7]}
11. exd5 {[%clk 0:02:32.7]} 11... Nb4 {[%clk 0:02:55.6]} 12. Kd2 {[%clk
0:02:19.4]} 12... Bf5 {[%clk 0:02:43.5]} 13. c4 {[%clk 0:01:56.2]} 13... Nc2
{[%clk 0:02:17.8]} 14. Rb1 {[%clk 0:01:56]} 14... Nb4 {[%clk 0:02:17.4]} 15. Ra1
{[%clk 0:01:42]} 15... Nc2 {[%clk 0:02:03.2]} 16. Bd3 {[%clk 0:01:41.4]} 16...
Bxd3 {[%clk 0:01:57.9]} 17. Kxd3 {[%clk 0:01:42.3]} 17... Nxa1 {[%clk
0:01:57.4]} 18. Be3 {[%clk 0:01:39.2]} 18... Nb3 {[%clk 0:01:20.9]} 19. axb3
{[%clk 0:01:37.6]} 19... f6 {[%clk 0:01:06.9]} 20. Ra1 {[%clk 0:01:36.3]} 20...
Kf7 {[%clk 0:01:05.6]} 21. Bb6 {[%clk 0:01:35]} 21... Rac8 {[%clk 0:01:02.5]}
22. Ra5 {[%clk 0:01:34.6]} 22... Rhe8 {[%clk 0:01:01.1]} 23. b4 {[%clk
0:01:32.6]} 23... e4+ {[%clk 0:00:50.5]} 24. Kd4 {[%clk 0:01:32.8]} 24... f5
{[%clk 0:00:49.5]} 25. d6 {[%clk 0:01:24]} 25... Ke6 {[%clk 0:00:49]} 26. Rd5
{[%clk 0:01:18.6]} 26... Kd7 {[%clk 0:00:48.7]} 27. Bc7 {[%clk 0:01:03.4]} 27...
g6 {[%clk 0:00:42.1]} 28. b5 {[%clk 0:01:02.9]} 28... Ra8 {[%clk 0:00:35.9]} 29.
b6 {[%clk 0:00:51.4]} 29... f4 {[%clk 0:00:34]} 30. Ra5 {[%clk 0:00:31.9]} 30...
e3 {[%clk 0:00:31.9]} 31. f3 {[%clk 0:00:26.7]} 31... e2 {[%clk 0:00:27.5]} 0-1

[Event "*** Titled Tuesday Blitz"]
[Site "Chess.com"]
[Date "2020.04.28"]
[Round "4"]
[White "stoleriu"]
[Black "YQPerez"]
[Result "0-1"]
[WhiteElo "2550"]
[BlackElo "2954"]
[TimeControl "180+1"]
[EndTime "10:39:46 PDT"]
[Termination "YQPerez won by resignation"]

1. e4 {[%clk 0:03:00.9]} 1... e5 {[%clk 0:02:59.8]} 2. Nf3 {[%clk 0:03:00.7]}
2... Nc6 {[%clk 0:02:59.8]} 3. Bb5 {[%clk 0:03:00.4]} 3... a6 {[%clk 0:02:59.9]}
4. Ba4 {[%clk 0:03:00.2]} 4... Nf6 {[%clk 0:02:59.8]} 5. d3 {[%clk 0:03:00.1]}
5... b5 {[%clk 0:02:58.9]} 6. Bb3 {[%clk 0:02:59.7]} 6... Be7 {[%clk 0:02:59.3]}
7. O-O {[%clk 0:02:58.8]} 7... O-O {[%clk 0:02:59.1]} 8. Re1 {[%clk 0:02:57.3]}
8... Bb7 {[%clk 0:02:55.1]} 9. Nbd2 {[%clk 0:02:54]} 9... d6 {[%clk 0:02:50]}
10. c3 {[%clk 0:02:47]} 10... Na5 {[%clk 0:02:47.2]} 11. Bc2 {[%clk 0:02:46.6]}
11... c5 {[%clk 0:02:47.2]} 12. Nf1 {[%clk 0:02:46.5]} 12... Re8 {[%clk
0:02:46.5]} 13. Ng3 {[%clk 0:02:43.1]} 13... Bf8 {[%clk 0:02:46.4]} 14. Nf5
{[%clk 0:02:38.5]} 14... h6 {[%clk 0:02:42]} 15. h3 {[%clk 0:02:37.4]} 15... d5
{[%clk 0:02:22.5]} 16. Qe2 {[%clk 0:02:32.9]} 16... Bc8 {[%clk 0:02:03.2]} 17.
Ng3 {[%clk 0:02:23.8]} 17... d4 {[%clk 0:01:58.4]} 18. Nh2 {[%clk 0:02:23.2]}
18... Nc6 {[%clk 0:01:53.9]} 19. a4 {[%clk 0:02:17.8]} 19... Be6 {[%clk
0:01:50.7]} 20. Ng4 {[%clk 0:02:02.5]} 20... Nxg4 {[%clk 0:01:47.6]} 21. hxg4
{[%clk 0:02:03.4]} 21... g6 {[%clk 0:01:44.7]} 22. axb5 {[%clk 0:01:46.2]} 22...
axb5 {[%clk 0:01:44.5]} 23. Rxa8 {[%clk 0:01:47.1]} 23... Qxa8 {[%clk 0:01:45]}
24. f4 {[%clk 0:01:47.4]} 24... exf4 {[%clk 0:01:38.2]} 25. Bxf4 {[%clk
0:01:48.3]} 25... Qd8 {[%clk 0:01:28.3]} 26. Kf2 {[%clk 0:01:06.9]} 26... Qf6
{[%clk 0:01:21.9]} 27. Qf3 {[%clk 0:01:06.9]} 27... Ne5 {[%clk 0:01:17.5]} 28.
Bxe5 {[%clk 0:01:04]} 28... Qxe5 {[%clk 0:01:18.4]} 29. Nf5 {[%clk 0:00:44.2]}
29... gxf5 {[%clk 0:01:09.4]} 30. gxf5 {[%clk 0:00:29.6]} 30... Bd7 {[%clk
0:01:08.9]} 31. c4 {[%clk 0:00:28]} 31... bxc4 {[%clk 0:01:06.2]} 32. dxc4
{[%clk 0:00:28.9]} 32... Be7 {[%clk 0:01:01]} 33. Rh1 {[%clk 0:00:28]} 33... Bg5
{[%clk 0:00:59.8]} 34. b3 {[%clk 0:00:27.5]} 34... Bc6 {[%clk 0:00:56.7]} 35.
Re1 {[%clk 0:00:25.9]} 35... Be3+ {[%clk 0:00:54.4]} 36. Kf1 {[%clk 0:00:24]}
36... Bxe4 {[%clk 0:00:49.8]} 37. Qg4+ {[%clk 0:00:20.4]} 37... Kh8 {[%clk
0:00:47.1]} 0-1

[Event "*** Titled Tuesday Blitz"]
[Site "Chess.com"]
[Date "2020.04.28"]
[Round "4"]
[White "crossingthestreet"]
[Black "GamayevOleg"]
[Result "0-1"]
[WhiteElo "2318"]
[BlackElo "2502"]
[TimeControl "180+1"]
[EndTime "10:39:46 PDT"]
[Termination "GamayevOleg won by resignation"]

1. c4 {[%clk 0:03:00.9]} 1... d6 {[%clk 0:03:00.4]} 2. Nc3 {[%clk 0:03:00.7]}
2... e5 {[%clk 0:03:00.7]} 3. Nf3 {[%clk 0:03:00.5]} 3... Nf6 {[%clk 0:03:01.1]}
4. d4 {[%clk 0:03:00.1]} 4... exd4 {[%clk 0:03:01.5]} 5. Nxd4 {[%clk 0:02:54.8]}
5... c6 {[%clk 0:03:02.4]} 6. e4 {[%clk 0:02:54.8]} 6... Nbd7 {[%clk 0:03:02.6]}
7. Be2 {[%clk 0:02:54.5]} 7... Nb6 {[%clk 0:03:03]} 8. O-O {[%clk 0:02:53.6]}
8... Be7 {[%clk 0:03:03.4]} 9. Be3 {[%clk 0:02:53.1]} 9... O-O {[%clk
0:03:03.3]} 10. f4 {[%clk 0:02:53.3]} 10... Re8 {[%clk 0:03:02.4]} 11. Bd3
{[%clk 0:02:50.9]} 11... Bf8 {[%clk 0:03:00.1]} 12. h3 {[%clk 0:02:46.7]} 12...
a5 {[%clk 0:02:47.9]} 13. Qd2 {[%clk 0:02:41.3]} 13... Nbd7 {[%clk 0:02:45.4]}
14. Qf2 {[%clk 0:02:35.7]} 14... Nc5 {[%clk 0:02:43.4]} 15. Rad1 {[%clk
0:02:22.4]} 15... Nxd3 {[%clk 0:02:34.7]} 16. Rxd3 {[%clk 0:02:10.7]} 16... Nxe4
{[%clk 0:02:34.6]} 17. Nxe4 {[%clk 0:02:08]} 17... Rxe4 {[%clk 0:02:35.5]} 18.
f5 {[%clk 0:01:47.6]} 18... d5 {[%clk 0:02:33.9]} 19. cxd5 {[%clk 0:01:42.2]}
19... cxd5 {[%clk 0:02:33.6]} 20. f6 {[%clk 0:01:37.3]} 20... Qxf6 {[%clk
0:02:31.9]} 21. Qxf6 {[%clk 0:01:36.9]} 21... gxf6 {[%clk 0:02:32.1]} 22. Rxf6
{[%clk 0:01:36.1]} 22... Bg7 {[%clk 0:02:31.7]} 23. Rf3 {[%clk 0:01:31.4]} 23...
Be6 {[%clk 0:02:31.4]} 24. Rg3 {[%clk 0:01:31.1]} 24... Kh8 {[%clk 0:02:30.4]}
25. b3 {[%clk 0:01:22.2]} 25... Rg8 {[%clk 0:02:28.7]} 26. Nxe6 {[%clk 0:01:01]}
26... fxe6 {[%clk 0:02:26.8]} 27. Bb6 {[%clk 0:00:56.6]} 27... a4 {[%clk
0:02:21.4]} 28. bxa4 {[%clk 0:00:49.8]} 28... Rxa4 {[%clk 0:02:22.3]} 29. Rdf3
{[%clk 0:00:42]} 29... Bd4+ {[%clk 0:01:52.3]} 30. Bxd4+ {[%clk 0:00:39.7]}
30... Rxd4 {[%clk 0:01:53.2]} 31. Rxg8+ {[%clk 0:00:31.4]} 31... Kxg8 {[%clk
0:01:54.1]} 32. Rb3 {[%clk 0:00:32]} 32... Ra4 {[%clk 0:01:51]} 33. Rxb7 {[%clk
0:00:30]} 33... Rxa2 {[%clk 0:01:50.9]} 34. Kh2 {[%clk 0:00:29.2]} 34... Re2
{[%clk 0:01:50]} 35. Kg3 {[%clk 0:00:18.4]} 35... Re4 {[%clk 0:01:47.3]} 36. Kf3
{[%clk 0:00:18.6]} 36... h5 {[%clk 0:01:45.3]} 37. Rd7 {[%clk 0:00:19.1]} 37...
h4 {[%clk 0:01:45]} 38. g4 {[%clk 0:00:19.5]} 38... hxg3 {[%clk 0:01:44.5]} 39.
Kxg3 {[%clk 0:00:20.4]} 39... d4 {[%clk 0:01:41.5]} 40. Kf3 {[%clk 0:00:20]}
40... Re3+ {[%clk 0:01:41.8]} 41. Kf4 {[%clk 0:00:20.1]} 41... e5+ {[%clk
0:01:42.2]} 42. Kg4 {[%clk 0:00:18]} 42... d3 {[%clk 0:01:42.2]} 43. h4 {[%clk
0:00:16.7]} 43... e4 {[%clk 0:01:42.4]} 44. h5 {[%clk 0:00:17]} 44... Re2 {[%clk
0:01:42.4]} 45. Kg5 {[%clk 0:00:17.3]} 45... d2 {[%clk 0:01:41.7]} 46. Kg6
{[%clk 0:00:17.6]} 46... Rg2+ {[%clk 0:01:40.8]} 47. Kf6 {[%clk 0:00:16.9]}
47... e3 {[%clk 0:01:40.7]} 48. h6 {[%clk 0:00:16.6]} 48... Rg1 {[%clk
0:01:33.6]} 49. h7+ {[%clk 0:00:15.2]} 49... Kh8 {[%clk 0:01:33.2]} 50. Kf5
{[%clk 0:00:13.9]} 50... d1=Q {[%clk 0:01:32.1]} 0-1

[Event "*** Titled Tuesday Blitz"]
[Site "Chess.com"]
[Date "2020.04.28"]
[Round "4"]
[White "TheFireChess"]
[Black "Iyael"]
[Result "1-0"]
[WhiteElo "2408"]
[BlackElo "2116"]
[TimeControl "180+1"]
[EndTime "10:39:46 PDT"]
[Termination "TheFireChess won by checkmate"]

1. g3 {[%clk 0:03:00.9]} 1... Nf6 {[%clk 0:02:58.8]} 2. Bg2 {[%clk 0:03:01.8]}
2... g6 {[%clk 0:02:58.6]} 3. d3 {[%clk 0:03:02.7]} 3... Bg7 {[%clk 0:02:58.4]}
4. Nc3 {[%clk 0:03:03.6]} 4... O-O {[%clk 0:02:57.9]} 5. e4 {[%clk 0:03:04.2]}
5... d6 {[%clk 0:02:57.8]} 6. Be3 {[%clk 0:03:03.4]} 6... c5 {[%clk 0:02:57]} 7.
h3 {[%clk 0:03:03.8]} 7... Nc6 {[%clk 0:02:57]} 8. Qd2 {[%clk 0:03:04.4]} 8...
Nd4 {[%clk 0:02:56.3]} 9. Nd1 {[%clk 0:03:04.4]} 9... Rb8 {[%clk 0:02:52.3]} 10.
c3 {[%clk 0:03:04.7]} 10... Nc6 {[%clk 0:02:51.7]} 11. Bh6 {[%clk 0:03:05.3]}
11... Bd7 {[%clk 0:02:49.7]} 12. Bxg7 {[%clk 0:03:05.7]} 12... Kxg7 {[%clk
0:02:49.3]} 13. f4 {[%clk 0:03:06.3]} 13... b5 {[%clk 0:02:48.8]} 14. Ne2 {[%clk
0:03:06.4]} 14... b4 {[%clk 0:02:48.3]} 15. c4 {[%clk 0:03:06.7]} 15... e5
{[%clk 0:02:46.6]} 16. O-O {[%clk 0:03:04.8]} 16... Nd4 {[%clk 0:02:44.9]} 17.
Nxd4 {[%clk 0:03:04.5]} 17... cxd4 {[%clk 0:02:43.5]} 18. g4 {[%clk 0:03:00.5]}
18... Bc6 {[%clk 0:02:42.4]} 19. f5 {[%clk 0:02:54.8]} 19... Nd7 {[%clk
0:02:41.7]} 20. Nf2 {[%clk 0:02:49.3]} 20... Qh4 {[%clk 0:02:40]} 21. a3 {[%clk
0:02:42.7]} 21... bxa3 {[%clk 0:02:35.3]} 22. Rxa3 {[%clk 0:02:43.6]} 22... Rb7
{[%clk 0:02:34.4]} 23. Rfa1 {[%clk 0:02:40.3]} 23... Rfb8 {[%clk 0:02:29]} 24.
Nd1 {[%clk 0:02:38.7]} 24... Nc5 {[%clk 0:02:23]} 25. Rxa7 {[%clk 0:02:25.5]}
25... Rb3 {[%clk 0:02:22.5]} 26. R7a3 {[%clk 0:02:25.6]} 26... Qg3 {[%clk
0:02:21.8]} 27. Rxb3 {[%clk 0:02:21.1]} 27... Nxb3 {[%clk 0:02:19.4]} 28. f6+
{[%clk 0:02:11.9]} 28... Kxf6 {[%clk 0:02:12.1]} 29. Qh6 {[%clk 0:02:11.3]}
29... Nxa1 {[%clk 0:02:11.6]} 30. b4 {[%clk 0:02:07.2]} 30... Qe1+ {[%clk
0:02:09.6]} 31. Kh2 {[%clk 0:02:06.8]} 31... Qxd1 {[%clk 0:02:09.4]} 32. b5
{[%clk 0:02:07.1]} 32... Bd7 {[%clk 0:02:07.7]} 33. g5+ {[%clk 0:01:59.5]} 33...
Ke7 {[%clk 0:02:07]} 34. Qg7 {[%clk 0:01:58.4]} 34... Be6 {[%clk 0:02:02.4]} 35.
Qf6+ {[%clk 0:01:50.5]} 35... Kd7 {[%clk 0:02:01.8]} 36. c5 {[%clk 0:01:51.4]}
36... Nc2 {[%clk 0:02:00.3]} 37. c6+ {[%clk 0:01:43]} 37... Kc7 {[%clk
0:02:00.2]} 38. Qe7+ {[%clk 0:01:43.1]} 38... Kb6 {[%clk 0:02:00.2]} 39. Qxd6
{[%clk 0:01:36.9]} 39... Rc8 {[%clk 0:02:00.2]} 40. Qe7 {[%clk 0:01:19]} 40...
Kxb5 {[%clk 0:01:56.6]} 41. Qb7+ {[%clk 0:01:13.5]} 41... Ka4 {[%clk 0:01:56.6]}
42. c7 {[%clk 0:01:08.5]} 42... Ne3 {[%clk 0:01:50.7]} 43. Qa6+ {[%clk
0:01:01.1]} 43... Kb3 {[%clk 0:01:49.7]} 44. Qb5+ {[%clk 0:01:00.9]} 44... Kc2
{[%clk 0:01:48.5]} 45. Qa4+ {[%clk 0:00:43.5]} 45... Kd2 {[%clk 0:01:48]} 46.
Qb4+ {[%clk 0:00:43.4]} 46... Ke2 {[%clk 0:01:46.5]} 47. Qb2+ {[%clk 0:00:39.4]}
47... Qd2 {[%clk 0:01:45.5]} 48. Qa1 {[%clk 0:00:37.1]} 48... Nxg2 {[%clk
0:01:44.4]} 49. Kxg2 {[%clk 0:00:35.5]} 49... Kxd3+ {[%clk 0:01:44.3]} 50. Kh1
{[%clk 0:00:31]} 50... Kxe4 {[%clk 0:01:42.4]} 51. Qb1+ {[%clk 0:00:27.9]} 51...
Qd3 {[%clk 0:01:41.8]} 52. Qe1+ {[%clk 0:00:26.9]} 52... Kd5 {[%clk 0:01:40.4]}
53. Qa5+ {[%clk 0:00:24.4]} 53... Ke4 {[%clk 0:01:34]} 54. Qe1+ {[%clk
0:00:23.7]} 54... Kf4 {[%clk 0:01:33.3]} 55. Qh4+ {[%clk 0:00:19.9]} 55... Kf5
{[%clk 0:01:27.5]} 56. Qg4# {[%clk 0:00:19.2]} 1-0

[Event "*** Titled Tuesday Blitz"]
[Site "Chess.com"]
[Date "2020.04.28"]
[Round "4"]
[White "damayito"]
[Black "tgpgoat"]
[Result "0-1"]
[WhiteElo "1643"]
[BlackElo "2194"]
[TimeControl "180+1"]
[EndTime "10:39:46 PDT"]
[Termination "tgpgoat won by resignation"]

1. e4 {[%clk 0:03:00.9]} 1... c5 {[%clk 0:02:59.6]} 2. Nc3 {[%clk 0:02:59.3]}
2... Nc6 {[%clk 0:02:59.4]} 3. g3 {[%clk 0:02:57.8]} 3... g6 {[%clk 0:02:59.2]}
4. Bg2 {[%clk 0:02:58]} 4... Bg7 {[%clk 0:03:00.1]} 5. Nge2 {[%clk 0:02:58.1]}
5... d6 {[%clk 0:03:01]} 6. d3 {[%clk 0:02:58.3]} 6... Nf6 {[%clk 0:03:01.9]} 7.
O-O {[%clk 0:02:57.6]} 7... O-O {[%clk 0:03:02.8]} 8. Bg5 {[%clk 0:02:56.8]}
8... Bg4 {[%clk 0:03:02.7]} 9. Qd2 {[%clk 0:02:56.4]} 9... a6 {[%clk 0:03:01.4]}
10. Bh6 {[%clk 0:02:56]} 10... b5 {[%clk 0:03:00.8]} 11. Bxg7 {[%clk 0:02:54.7]}
11... Kxg7 {[%clk 0:02:58.4]} 12. f3 {[%clk 0:02:52.8]} 12... Bd7 {[%clk
0:02:57.7]} 13. Nf4 {[%clk 0:02:50.1]} 13... b4 {[%clk 0:02:47.9]} 14. Ncd5
{[%clk 0:02:49.4]} 14... Nxd5 {[%clk 0:02:47]} 15. Nxd5 {[%clk 0:02:49.3]} 15...
Kg8 {[%clk 0:02:46.8]} 16. a3 {[%clk 0:02:44.4]} 16... Qb8 {[%clk 0:02:43.4]}
17. axb4 {[%clk 0:02:40.1]} 17... cxb4 {[%clk 0:02:43.2]} 18. f4 {[%clk
0:02:31.6]} 18... a5 {[%clk 0:02:28.4]} 19. Qf2 {[%clk 0:02:25]} 19... Qa7
{[%clk 0:02:27.1]} 20. Nb6 {[%clk 0:02:22.1]} 20... Rab8 {[%clk 0:02:23.3]} 21.
Nxd7 {[%clk 0:02:02.3]} 21... Qxd7 {[%clk 0:02:24.2]} 22. Ra4 {[%clk 0:01:55.8]}
22... Rfc8 {[%clk 0:02:10.9]} 23. Rfa1 {[%clk 0:01:54.8]} 23... Qe6 {[%clk
0:02:02.6]} 24. d4 {[%clk 0:01:50.6]} 24... Qc4 {[%clk 0:02:02.2]} 25. d5 {[%clk
0:01:42.6]} 25... Nd4 {[%clk 0:02:01.8]} 26. Rxa5 {[%clk 0:01:37.2]} 26... Nxc2
{[%clk 0:01:51]} 27. Rc1 {[%clk 0:01:26.3]} 27... Qb3 {[%clk 0:01:33.7]} 28. Bf1
{[%clk 0:01:14.4]} 28... Qxb2 {[%clk 0:01:21.5]} 29. Rd1 {[%clk 0:01:12.9]}
29... b3 {[%clk 0:01:15.3]} 30. e5 {[%clk 0:01:07.5]} 30... Qc3 {[%clk
0:00:44.4]} 31. Ra7 {[%clk 0:00:59.7]} 31... b2 {[%clk 0:00:39.1]} 32. exd6
{[%clk 0:00:58.5]} 32... exd6 {[%clk 0:00:35.6]} 33. Rb1 {[%clk 0:00:56.4]}
33... Na3 {[%clk 0:00:33.1]} 34. Rxa3 {[%clk 0:00:51.5]} 34... Qxa3 {[%clk
0:00:34]} 35. Bd3 {[%clk 0:00:47.9]} 35... Qxd3 {[%clk 0:00:26.5]} 36. Qe1
{[%clk 0:00:45.5]} 36... Qxb1 {[%clk 0:00:23.6]} 37. Qxb1 {[%clk 0:00:44.4]}
37... Rc1+ {[%clk 0:00:24]} 0-1

[Event "*** Titled Tuesday Blitz"]
[Site "Chess.com"]
[Date "2020.04.28"]
[Round "4"]
[White "YoungUzbek"]
[Black "StephenDedalus83"]
[Result "0-1"]
[WhiteElo "2520"]
[BlackElo "2795"]
[TimeControl "180+1"]
[EndTime "10:39:49 PDT"]
[Termination "StephenDedalus83 won by resignation"]

1. d4 {[%clk 0:03:00.6]} 1... g6 {[%clk 0:02:58.5]} 2. Nf3 {[%clk 0:03:00.5]}
2... Bg7 {[%clk 0:02:58.9]} 3. e4 {[%clk 0:03:00.7]} 3... d6 {[%clk 0:02:58.1]}
4. g3 {[%clk 0:03:00.9]} 4... Nd7 {[%clk 0:02:55.1]} 5. Bg2 {[%clk 0:03:00.7]}
5... e5 {[%clk 0:02:54.9]} 6. O-O {[%clk 0:03:00.8]} 6... Ne7 {[%clk 0:02:54.1]}
7. Nc3 {[%clk 0:03:00.6]} 7... O-O {[%clk 0:02:52.9]} 8. Bg5 {[%clk 0:02:59.6]}
8... h6 {[%clk 0:02:51.7]} 9. Be3 {[%clk 0:02:59.4]} 9... Nc6 {[%clk 0:02:46.9]}
10. h3 {[%clk 0:02:43.3]} 10... f5 {[%clk 0:02:35.9]} 11. dxe5 {[%clk
0:02:30.8]} 11... dxe5 {[%clk 0:02:33.8]} 12. exf5 {[%clk 0:02:14.7]} 12... gxf5
{[%clk 0:02:33.4]} 13. Nh4 {[%clk 0:02:14.8]} 13... f4 {[%clk 0:02:30.5]} 14.
Qd5+ {[%clk 0:02:10.8]} 14... Rf7 {[%clk 0:02:27.8]} 15. Bd2 {[%clk 0:02:02.2]}
15... Nb6 {[%clk 0:02:18.8]} 16. Qxd8+ {[%clk 0:01:53.7]} 16... Nxd8 {[%clk
0:02:19.7]} 17. Rad1 {[%clk 0:01:47.2]} 17... Bf6 {[%clk 0:02:11.4]} 18. Ne4
{[%clk 0:01:31.3]} 18... Bxh4 {[%clk 0:02:10.4]} 19. gxh4 {[%clk 0:01:32.2]}
19... f3 {[%clk 0:02:10.2]} 20. Bh1 {[%clk 0:01:30.5]} 20... Bxh3 {[%clk
0:02:09.9]} 21. Rfe1 {[%clk 0:01:29.8]} 21... Kh7 {[%clk 0:02:02.3]} 22. Kh2
{[%clk 0:01:29.6]} 22... Bg2 {[%clk 0:01:45.4]} 23. Bxg2 {[%clk 0:01:11.8]}
23... fxg2 {[%clk 0:01:45.1]} 24. Bc3 {[%clk 0:01:12]} 24... Nc6 {[%clk
0:01:44.2]} 25. Kxg2 {[%clk 0:01:09.1]} 25... Rg8+ {[%clk 0:01:43.6]} 26. Ng3
{[%clk 0:01:09.2]} 26... Nc4 {[%clk 0:01:42.3]} 27. b3 {[%clk 0:01:06.7]} 27...
Na3 {[%clk 0:01:38.3]} 28. Rd2 {[%clk 0:01:02.8]} 28... Re8 {[%clk 0:01:30.2]}
29. f4 {[%clk 0:00:49.7]} 29... e4 {[%clk 0:01:11.8]} 30. Rxe4 {[%clk
0:00:47.9]} 30... Rxe4 {[%clk 0:01:11.1]} 31. Nxe4 {[%clk 0:00:48.8]} 31... Rxf4
{[%clk 0:01:11.5]} 32. Rd7+ {[%clk 0:00:47.1]} 32... Kg6 {[%clk 0:01:06]} 33.
Ng3 {[%clk 0:00:44.3]} 33... h5 {[%clk 0:00:58.5]} 34. Rg7+ {[%clk 0:00:38.9]}
34... Kh6 {[%clk 0:00:58.5]} 35. Rg5 {[%clk 0:00:37.1]} 35... Rxh4 {[%clk
0:00:56.5]} 36. Bf6 {[%clk 0:00:25.1]} 36... Rg4 {[%clk 0:00:54.7]} 37. Rf5
{[%clk 0:00:10.4]} 37... Kg6 {[%clk 0:00:53.2]} 38. Rf3 {[%clk 0:00:09]} 0-1

[Event "*** Titled Tuesday Blitz"]
[Site "Chess.com"]
[Date "2020.04.28"]
[Round "4"]
[White "WoolworthsManly"]
[Black "aakankshachess"]
[Result "1-0"]
[WhiteElo "2658"]
[BlackElo "2467"]
[TimeControl "180+1"]
[EndTime "10:39:49 PDT"]
[Termination "WoolworthsManly won by resignation"]

1. e4 {[%clk 0:03:00.9]} 1... e6 {[%clk 0:02:57.6]} 2. d4 {[%clk 0:02:57.4]}
2... d5 {[%clk 0:02:57.6]} 3. Nc3 {[%clk 0:02:57]} 3... Bb4 {[%clk 0:02:57.5]}
4. exd5 {[%clk 0:02:55]} 4... exd5 {[%clk 0:02:56.9]} 5. Bd3 {[%clk 0:02:55.6]}
5... Nc6 {[%clk 0:02:48.1]} 6. a3 {[%clk 0:02:55.2]} 6... Bxc3+ {[%clk
0:02:44.6]} 7. bxc3 {[%clk 0:02:56.1]} 7... Nge7 {[%clk 0:02:42.7]} 8. Qf3
{[%clk 0:02:56.2]} 8... Be6 {[%clk 0:02:41.5]} 9. Ne2 {[%clk 0:02:55.1]} 9...
Qd7 {[%clk 0:02:39.8]} 10. Nf4 {[%clk 0:02:55.1]} 10... O-O {[%clk 0:02:38.9]}
11. Nxe6 {[%clk 0:02:53.6]} 11... Qxe6+ {[%clk 0:02:26]} 12. Kd1 {[%clk
0:02:53]} 12... Ng6 {[%clk 0:02:21.9]} 13. Re1 {[%clk 0:02:50.9]} 13... Qd6
{[%clk 0:02:20.7]} 14. Qg3 {[%clk 0:02:40.5]} 14... Qd7 {[%clk 0:02:18.1]} 15.
h4 {[%clk 0:02:35.5]} 15... Rfe8 {[%clk 0:02:11.2]} 16. h5 {[%clk 0:02:34]}
16... Nf8 {[%clk 0:02:02]} 17. h6 {[%clk 0:02:23.8]} 17... Ng6 {[%clk 0:01:56]}
18. hxg7 {[%clk 0:02:20.8]} 18... Kxg7 {[%clk 0:01:55.4]} 19. Bf4 {[%clk
0:02:09.2]} 19... Rxe1+ {[%clk 0:01:52.5]} 20. Kxe1 {[%clk 0:02:09.1]} 20...
Re8+ {[%clk 0:01:52.3]} 21. Kd2 {[%clk 0:02:07]} 21... Qe6 {[%clk 0:01:46]} 22.
Rh1 {[%clk 0:01:52.8]} 22... Na5 {[%clk 0:01:30.9]} 23. Be5+ {[%clk 0:01:43]}
23... Kf8 {[%clk 0:00:51.7]} 24. Rxh7 {[%clk 0:01:33.5]} 24... Nxe5 {[%clk
0:00:47.8]} 25. Rh8+ {[%clk 0:01:05.5]} 25... Ke7 {[%clk 0:00:45.4]} 26. Rxe8+
{[%clk 0:01:03]} 26... Kxe8 {[%clk 0:00:45.5]} 27. Qxe5 {[%clk 0:01:03.5]} 27...
Qxe5 {[%clk 0:00:41.8]} 28. dxe5 {[%clk 0:01:04.4]} 28... Ke7 {[%clk 0:00:41.1]}
29. f4 {[%clk 0:01:04.3]} 29... f6 {[%clk 0:00:40.9]} 30. exf6+ {[%clk
0:01:03.8]} 30... Kxf6 {[%clk 0:00:41.4]} 31. g4 {[%clk 0:01:04.4]} 31... Nc6
{[%clk 0:00:41.2]} 32. g5+ {[%clk 0:01:04.6]} 32... Kf7 {[%clk 0:00:41.3]} 33.
Ke3 {[%clk 0:01:04.7]} 33... Ne7 {[%clk 0:00:39.2]} 34. f5 {[%clk 0:01:04.9]}
34... c5 {[%clk 0:00:38.6]} 35. Kf4 {[%clk 0:01:05.3]} 35... Nc6 {[%clk
0:00:36.9]} 36. Be2 {[%clk 0:01:02.5]} 36... a6 {[%clk 0:00:35.7]} 37. Bf3
{[%clk 0:00:59.3]} 37... Ne7 {[%clk 0:00:24.4]} 38. Ke5 {[%clk 0:00:59.3]} 38...
b5 {[%clk 0:00:19.9]} 39. Bxd5+ {[%clk 0:00:58.7]} 39... Nxd5 {[%clk 0:00:20.5]}
40. Kxd5 {[%clk 0:00:58.8]} 40... c4 {[%clk 0:00:21]} 41. Kc5 {[%clk 0:00:58.2]}
41... Kg7 {[%clk 0:00:20.3]} 42. Kb6 {[%clk 0:00:58.3]} 42... Kf7 {[%clk
0:00:20.1]} 43. Kxa6 {[%clk 0:00:58.6]} 1-0

[Event "*** Titled Tuesday Blitz"]
[Site "Chess.com"]
[Date "2020.04.28"]
[Round "4"]
[White "NotFischer"]
[Black "top_bu_tz"]
[Result "1-0"]
[WhiteElo "2161"]
[BlackElo "2329"]
[TimeControl "180+1"]
[EndTime "10:39:50 PDT"]
[Termination "NotFischer won by resignation"]

1. Nf3 {[%clk 0:03:00.7]} 1... Nf6 {[%clk 0:02:58.9]} 2. g3 {[%clk 0:03:00.9]}
2... g6 {[%clk 0:02:57.8]} 3. Bg2 {[%clk 0:03:01.1]} 3... Bg7 {[%clk 0:02:58.1]}
4. d4 {[%clk 0:03:01.6]} 4... O-O {[%clk 0:02:58.5]} 5. O-O {[%clk 0:03:02.1]}
5... d6 {[%clk 0:02:58.5]} 6. c4 {[%clk 0:03:02.2]} 6... Nc6 {[%clk 0:02:44.4]}
7. Nc3 {[%clk 0:03:02.2]} 7... e5 {[%clk 0:02:44]} 8. e4 {[%clk 0:03:01.9]} 8...
h6 {[%clk 0:02:35.5]} 9. h3 {[%clk 0:03:00.2]} 9... Re8 {[%clk 0:02:32.7]} 10.
Be3 {[%clk 0:02:59.7]} 10... Nh5 {[%clk 0:01:50.7]} 11. Qd2 {[%clk 0:02:54.6]}
11... Kh7 {[%clk 0:01:45.3]} 12. Rad1 {[%clk 0:02:44.3]} 12... f5 {[%clk
0:00:54.8]} 13. exf5 {[%clk 0:02:44]} 13... gxf5 {[%clk 0:00:55.7]} 14. dxe5
{[%clk 0:02:42.1]} 14... dxe5 {[%clk 0:00:41.7]} 15. Qc2 {[%clk 0:01:58.5]}
15... Qe7 {[%clk 0:00:41]} 16. Nd5 {[%clk 0:01:56]} 16... Qf7 {[%clk 0:00:40.4]}
17. b4 {[%clk 0:01:19.6]} 17... Be6 {[%clk 0:00:10.4]} 18. b5 {[%clk 0:01:19.7]}
18... Nd8 {[%clk 0:00:10.6]} 19. g4 {[%clk 0:01:04.7]} 19... Nf4 {[%clk
0:00:04.9]} 20. Nxf4 {[%clk 0:00:43.4]} 20... exf4 {[%clk 0:00:05.8]} 21. Bxf4
{[%clk 0:00:42.5]} 21... Kh8 {[%clk 0:00:06.2]} 22. g5 {[%clk 0:00:40.1]} 22...
Bxc4 {[%clk 0:00:05.5]} 23. gxh6 {[%clk 0:00:36.5]} 23... Bxf1 {[%clk
0:00:02.6]} 24. hxg7+ {[%clk 0:00:36.2]} 24... Qxg7 {[%clk 0:00:03.5]} 25. Kxf1
{[%clk 0:00:35.3]} 25... Ne6 {[%clk 0:00:03.6]} 26. Be5 {[%clk 0:00:35]} 1-0